bitfinex/quotes_ETHUSD_20240713
["timestamp","ask_amount","ask_price","bid_price","bid_amount"]
[1720879714177,1.09775582,3155.7,3155.6,2.21822]
[1720879714380,0.0787329,3155.7,3155.6,2.21822]
[1720879714811,1.09775582,3155.7,3155.6,2.21822]
[1720879715107,1.17648872,3155.7,3155.6,2.21822]
[1720879715320,1.17648872,3155.7,3155.4,2.21837]
[1720879715606,2.48091788,3155.6,3155.4,4.43672]
[1720879715792,2.55965012,3155.5,3155.4,2.21835]
[1720879716869,2.55986757,3155.5,3155.4,2.21835]
[1720879717291,0.07873224,3155.5,3155.4,2.21835]
[1720879717482,1.17658845,3155.5,3155.4,2.21835]
[1720879717694,1.09785621,3155.5,3155.4,2.21835]
[1720879718010,2.559847,3155.5,3155.4,2.21835]
[1720879719075,1.17654817,3155.5,3155.4,2.21835]
[1720879719305,2.55970366,3155.5,3155.4,2.66204]
[1720879719694,2.55970366,3155.5,3155.4,4.88045]
[1720879719888,1.17654817,3155.5,3155.4,4.88045]
[1720879720083,1.17638343,3155.5,3155.4,4.88045]
[1720879720410,1.09769147,3155.5,3155.4,4.88045]
[1720879721575,2.48084654,3155.5,3155.4,4.88045]
[1720879721776,1.6531109,3155.9,3155.4,2.21835]
[1720879721987,2.2178,3156.3,3154.9,3.466492]
[1720879721988,9.56468748,3155.8,3154.9,2.21873]
[1720879722209,1.6531109,3155.6,3155.1,2.21858]
[1720879722410,4.73377658,3155.5,3154.9,2.21871]
[1720879722721,4.73377658,3155.4,3155.0,2.21869]
[1720879722881,1.6531109,3155.5,3155.1,2.21862]
[1720879722882,2.48103073,3155.3,3155.1,2.21862]
[1720879723077,2.48103073,3155.2,3155.1,2.21862]
[1720879723604,2.48138603,3155.2,3155.1,2.21862]
[1720879723910,2.48138603,3155.2,3154.9,2.21871]
[1720879724125,2.48138603,3155.1,3154.5,15.13]
[1720879724323,0.804,3154.9,3154.5,12.13]
[1720879724527,0.879,3154.7,3154.4,7.41]
[1720879724734,3.63535234,3154.6,3154.4,7.41]
[1720879724882,4.73331076,3154.5,3154.4,7.41]
[1720879726514,2.25192473,3154.5,3154.4,7.41]
[1720879726696,4.73393143,3154.5,3154.4,7.41]
[1720879727504,4.73393143,3154.5,3153.7,2.3479]
[1720879727505,7.03129682,3154.5,3153.8,2.21954]
[1720879727696,1.65320663,3154.3,3153.8,2.21954]
[1720879727895,4.73393143,3154.2,3153.8,2.21954]
[1720879728092,4.73179053,3154.1,3153.8,2.21954]
[1720879728401,2.56031538,3154.0,3153.7,7.41]
[1720879728593,2.4820067,3153.9,3153.7,8.372964]
[1720879728794,2.56031471,3153.8,3153.7,10.592574]
[1720879728998,2.4820067,3153.8,3153.7,10.592574]
[1720879729421,1.09823305,3153.8,3153.7,10.592574]
[1720879729710,2.21912,3154.4,3153.8,2.21954]
[1720879730013,6.44877126,3154.3,3153.8,2.21954]
[1720879730223,2.48229861,3154.2,3153.6,2.21964]
[1720879730405,1.73052685,3154.3,3153.6,2.21964]
[1720879730406,2.4823791,3154.1,3153.6,2.21964]
[1720879730605,2.55786924,3154.0,3153.7,2.21961]
[1720879730849,2.4823791,3153.9,3153.7,2.21961]
[1720879731047,1.09839783,3153.8,3153.7,2.21961]
[1720879731241,0.07548948,3153.8,3153.7,2.21961]
[1720879731445,1.17388731,3153.8,3153.6,2.21964]
[1720879731742,1.09839783,3153.7,3153.6,2.21964]
[1720879731945,1.09839783,3153.7,3153.6,2.898366]
[1720879732117,1.09839783,3153.7,3153.4,2.3479]
[1720879732118,1.09839783,3153.7,3153.4,2.21977]
[1720879732325,3.38648118,3154.2,3153.4,5.21977]
[1720879732520,2.4823984,3154.1,3153.4,5.21977]
[1720879732820,2.48245219,3154.0,3153.5,2.21975]
[1720879733017,0.07543866,3154.1,3153.5,2.21975]
[1720879733234,0.075438,3153.9,3153.5,2.21975]
[1720879733420,1.09841381,3153.8,3153.5,2.21975]
[1720879733622,0.07543766,3153.8,3153.5,2.21975]
[1720879733818,0.07543766,3153.8,3153.6,2.21965]
[1720879734133,2.4921,3154.3,3153.6,2.21965]
[1720879734333,0.07543733,3153.7,3153.6,2.21965]
[1720879734517,4.71129,3154.3,3153.6,2.21965]
[1720879734721,0.07543733,3153.7,3153.6,2.21965]
[1720879734923,1.65041195,3154.5,3153.7,2.21956]
[1720879735117,2.48242754,3154.4,3153.8,2.21952]
[1720879735347,2.48242754,3154.3,3153.8,2.21952]
[1720879735541,2.48242754,3154.2,3153.8,2.21952]
[1720879735712,1.09841721,3154.1,3153.8,2.21952]
[1720879735908,1.09841721,3154.0,3153.8,2.21952]
[1720879736117,1.09841721,3153.9,3153.8,2.21952]
[1720879736324,2.21906,3154.5,3153.8,2.21952]
[1720879736644,2.48231178,3154.4,3154.0,2.2194]
[1720879736856,2.48231178,3154.3,3154.0,2.2194]
[1720879737159,1.09836838,3154.2,3154.0,2.2194]
[1720879737448,1.09836838,3154.1,3154.0,2.2194]
[1720879737857,1.09836838,3154.1,3154.0,2.90655304]
[1720879739309,1.09836838,3154.1,3154.0,5.12595304]
[1720879739725,3.0,3154.8,3154.2,2.21925]
[1720879739948,2.48203145,3154.7,3154.2,2.21925]
[1720879740146,1.09824325,3154.6,3154.2,2.21925]
[1720879740324,3.0,3154.8,3154.2,2.21925]
[1720879740325,2.48202975,3154.5,3154.2,2.21925]
[1720879740525,1.09824325,3154.4,3154.2,2.21925]
[1720879740711,1.09824325,3154.7,3154.2,2.21925]
[1720879740911,1.38385041,3154.6,3154.2,2.21925]
[1720879741116,1.09824325,3154.5,3154.2,2.21925]
[1720879741515,1.38382316,3154.4,3154.2,2.21925]
[1720879741742,1.09824325,3154.3,3154.2,2.21925]
[1720879741943,1.09824325,3154.7,3154.2,2.21925]
[1720879742147,2.48209846,3154.6,3154.2,2.21925]
[1720879742319,2.48209846,3154.5,3154.0,2.21935]
[1720879742523,1.09827365,3154.4,3154.0,4.43869]
[1720879742748,1.09831059,3154.3,3154.0,2.21934]
[1720879742939,1.09831059,3154.2,3154.1,2.21933]
[1720879743348,1.17381322,3154.2,3154.1,2.21933]
[1720879744220,1.17381322,3154.2,3153.9,2.21941]
[1720879744422,1.09831059,3154.1,3154.0,2.21939]
[1720879744746,1.17381208,3154.1,3154.0,2.21939]
[1720879744946,1.17381208,3154.1,3153.8,6.80819]
[1720879745158,1.09831059,3154.0,3153.8,4.58868]
[1720879745461,2.2191,3154.5,3153.8,2.21948]
[1720879745462,0.07549699,3153.9,3153.8,2.21948]
[1720879745948,1.09834453,3154.3,3153.8,2.21948]
[1720879746120,1.09834453,3154.4,3153.8,2.21948]
[1720879746319,0.07548839,3154.2,3153.8,2.21948]
[1720879746520,1.09834453,3154.1,3153.6,2.21965]
[1720879746723,0.07546976,3154.1,3153.6,2.21965]
[1720879746939,1.09834453,3154.0,3153.6,2.21965]
[1720879747330,0.07543455,3153.9,3153.6,2.21965]
[1720879747645,1.09834453,3153.8,3153.6,2.21965]
[1720879748032,0.07543388,3153.7,3153.6,2.21965]
[1720879748234,1.09834453,3153.7,3153.6,2.21965]
[1720879748445,1.09834453,3154.1,3153.6,2.21965]
[1720879748648,2.21924,3154.3,3153.6,2.21965]
[1720879748829,1.17377347,3154.0,3153.6,2.21965]
[1720879749034,1.09836546,3153.9,3153.4,6.80877]
[1720879749227,0.07538048,3153.8,3153.4,4.58897]
[1720879749427,1.09836546,3153.7,3153.4,6.80873]
[1720879749835,1.09836546,3154.1,3153.5,2.21975]
[1720879750048,0.07538115,3154.0,3153.5,2.21975]
[1720879750327,1.09836546,3153.9,3153.5,2.21975]
[1720879750752,0.07538048,3153.8,3153.5,2.21975]
[1720879750961,1.09836546,3153.7,3153.5,2.21975]
[1720879751659,1.09836546,3154.1,3153.5,2.21975]
[1720879751858,1.09836546,3154.0,3153.5,2.21971]
[1720879752069,0.07538121,3154.0,3153.5,2.678601]
[1720879752224,1.09842794,3153.9,3153.5,2.678601]
[1720879752419,1.1738167,3153.8,3153.5,2.678601]
[1720879752660,1.09843626,3153.7,3153.5,2.678601]
[1720879752827,1.09843626,3153.7,3153.6,2.21966]
[1720879753027,1.17378414,3153.7,3153.6,2.21966]
[1720879753344,1.17378414,3153.7,3153.6,2.9464061]
[1720879753743,1.09843626,3153.7,3153.6,2.9464061]
[1720879753948,1.09843626,3154.3,3153.7,2.2196]
[1720879754164,1.09843626,3154.2,3153.7,2.2196]
[1720879754340,1.09843626,3154.1,3153.7,2.2196]
[1720879754540,1.09843626,3154.0,3153.7,2.2196]
[1720879754766,1.09843626,3153.9,3153.7,2.2196]
[1720879754976,1.09843626,3153.8,3153.7,2.2196]
[1720879755199,1.17376858,3153.8,3153.7,2.2196]
[1720879755466,1.17376145,3153.8,3153.7,2.2196]
[1720879758760,1.173758,3153.8,3153.7,4.9290301]
[1720879759362,1.09842568,3153.8,3153.7,4.9290301]
[1720879761849,1.64999314,3154.4,3153.7,4.9290301]
[1720879762172,1.09839626,3154.3,3153.9,2.21942]
[1720879762366,3.0,3154.5,3153.9,2.21942]
[1720879762567,2.74990761,3154.4,3153.9,2.21942]
[1720879762776,1.09840736,3154.3,3153.9,2.21942]
[1720879762934,1.09840736,3154.2,3153.9,2.21942]
[1720879763138,1.09840736,3154.1,3154.0,2.2194]
[1720879763552,3.0,3154.7,3154.1,2.21931]
[1720879763740,1.65195489,3154.5,3154.1,2.21931]
[1720879764055,2.75025962,3154.4,3154.1,2.21931]
[1720879764240,1.09830473,3154.3,3154.1,2.21931]
[1720879764445,1.09830473,3154.2,3154.1,2.21931]
[1720879765054,1.09836982,3154.2,3154.1,2.21931]
[1720879765447,2.75162702,3154.2,3154.1,2.21931]
[1720879766294,1.0983762,3154.2,3153.9,2.21941]
[1720879766442,1.65428,3154.0,3153.9,2.21941]
[1720879766670,2.7526562,3154.0,3153.9,2.21941]
[1720879766997,1.0983762,3154.0,3153.9,2.21941]
[1720879767181,1.0983762,3154.0,3153.9,2.71228301]
[1720879767388,2.7526562,3154.0,3153.9,2.71228301]
[1720879768400,1.0983762,3154.0,3153.9,2.71228301]
[1720879768603,1.0983762,3154.0,3153.6,7.41]
[1720879768604,2.3947,3154.0,3153.6,7.41]
[1720879768902,0.804,3154.1,3153.6,9.62963]
[1720879768903,3.8902136,3153.9,3153.6,9.62963]
[1720879769111,1.09849046,3153.8,3153.6,9.62963]
[1720879769271,2.79172314,3153.9,3153.6,9.62963]
[1720879769272,1.09849046,3153.7,3153.6,9.62963]
[1720879769709,1.09849046,3153.7,3153.5,2.21973]
[1720879769999,1.98772314,3153.8,3153.5,2.663682]
[1720879770000,1.09849046,3153.6,3153.5,2.663682]
[1720879770793,1.09850425,3153.6,3153.5,2.663682]
[1720879771193,1.09850425,3153.6,3153.2,2.21993]
[1720879771416,1.65797959,3153.3,3153.2,2.21993]
[1720879771702,1.1738807,3153.3,3153.2,2.21993]
[1720879772005,0.07537645,3153.3,3153.2,2.21993]
[1720879772215,2.83189836,3153.3,3153.2,2.21993]
[1720879772376,4.43905,3153.9,3153.2,2.21993]
[1720879772577,1.7333664,3153.3,3153.2,2.21993]
[1720879772799,1.09856043,3153.3,3153.2,2.21993]
[1720879772977,1.17393688,3153.3,3153.2,2.21993]
[1720879773201,2.8317223,3153.3,3153.2,2.21993]
[1720879773377,1.17393688,3153.3,3153.2,2.21993]
[1720879773813,2.83197187,3153.3,3153.2,2.21993]
[1720879774310,1.17393688,3153.3,3153.2,2.21993]
[1720879774917,0.07537645,3153.3,3153.2,2.21993]
[1720879775078,1.09862226,3153.3,3153.0,4.44014]
[1720879775279,0.07537645,3153.3,3153.0,4.44014]
[1720879775528,2.75640392,3153.2,3153.0,4.44014]
[1720879775805,1.09862901,3153.1,3153.0,2.22005]
[1720879778711,1.09863848,3153.1,3153.0,2.22005]
[1720879779087,1.17401427,3153.1,3153.0,2.22005]
[1720879780593,1.17401427,3153.1,3152.9,4.56837]
[1720879780798,1.09863848,3153.0,3152.9,4.56837]
[1720879781194,1.17401394,3153.0,3152.9,4.56837]
[1720879781801,1.17401394,3153.0,3152.8,3.0]
[1720879782024,0.07537546,3153.0,3152.7,5.22029]
[1720879782214,1.09867383,3152.9,3152.7,5.22029]
[1720879782412,1.09867383,3152.8,3152.7,5.22029]
[1720879782615,1.17397307,3152.8,3152.0,9.8098]
[1720879782925,5.1195627,3152.7,3152.0,12.03055]
[1720879783129,1.65641608,3152.4,3152.0,9.8098]
[1720879783420,1.09867508,3152.3,3152.0,7.41]
[1720879783627,0.07512692,3152.3,3152.0,7.41]
[1720879783801,1.09867508,3152.2,3152.0,7.41]
[1720879784226,1.09867508,3152.2,3152.1,2.22074]
[1720879784438,1.09867508,3152.5,3152.1,2.22074]
[1720879784742,1.09867508,3152.4,3152.1,2.22074]
[1720879784896,2.75509116,3152.5,3152.1,2.22074]
[1720879785256,2.22039,3152.6,3152.0,9.6308]
[1720879785401,2.75329023,3152.5,3152.0,9.6308]
[1720879785597,2.75329023,3152.4,3152.0,9.6308]
[1720879785796,1.09899047,3152.3,3152.0,9.6308]
[1720879786351,1.09899047,3152.3,3152.0,10.815974]
[1720879787001,1.09899047,3152.3,3152.0,3.405974]
[1720879787237,1.09899047,3152.3,3152.0,2.2208]
[1720879787537,1.17401785,3152.2,3152.0,2.2208]
[1720879787740,1.09899047,3152.1,3152.0,2.2208]
[1720879787939,1.17401751,3152.1,3152.0,2.2208]
[1720879788624,1.17406446,3152.1,3152.0,2.2208]
[1720879788825,1.17406446,3152.1,3152.0,2.904954]
[1720879789143,1.09903742,3152.1,3152.0,2.904954]
[1720879789447,1.17406482,3152.1,3152.0,2.904954]
[1720879790000,1.09903742,3152.1,3152.0,2.904954]
[1720879790545,1.17406482,3152.1,3152.0,2.904954]
[1720879791896,1.1740472,3152.1,3152.0,2.904954]
[1720879792053,1.1740472,3152.1,3152.0,2.2208]
[1720879792248,0.0750274,3152.1,3152.0,2.2208]
[1720879792458,0.0750274,3152.1,3152.0,4.44161]
[1720879792763,0.805,3152.7,3152.2,2.22062]
[1720879792969,1.0989433,3152.6,3152.2,2.22062]
[1720879793171,1.0989433,3152.5,3152.2,2.22062]
[1720879793356,1.0989433,3152.4,3152.3,2.2206]
[1720879795105,0.805,3152.9,3152.3,2.2206]
[1720879795423,0.805,3152.7,3152.3,2.2206]
[1720879795592,1.09892653,3152.6,3152.3,2.2206]
[1720879798397,0.805,3152.7,3152.3,2.2206]
[1720879798712,1.09894369,3152.6,3152.3,2.2206]
[1720879799912,1.61542619,3152.5,3152.3,2.2206]
[1720879800115,1.09894369,3152.4,3152.3,2.2206]
[1720879800415,2.70436988,3152.4,3152.3,2.2206]
[1720879801216,1.61542619,3152.4,3152.3,2.2206]
[1720879801396,1.61542619,3152.6,3152.3,2.2206]
[1720879802409,0.805,3152.5,3152.1,2.22074]
[1720879802711,1.61542619,3152.4,3152.1,2.22074]
[1720879803076,0.07490062,3152.3,3152.1,2.22074]
[1720879803280,1.61542619,3152.2,3152.1,3.405902]
[1720879803715,1.61542619,3152.2,3152.1,2.22074]
[1720879804012,1.69032647,3152.2,3152.1,2.22074]
[1720879804221,1.69032647,3152.2,3152.1,5.42558689]
[1720879804517,0.07237527,3152.2,3152.1,13.41706689]
[1720879804734,1.64974575,3153.4,3153.3,4.43978]
[1720879805018,1.64974575,3153.9,3153.7,2.21958]
[1720879805196,1.64974575,3153.9,3153.8,2.21954]
[1720879805398,3.2643453,3153.9,3153.8,2.98393314]
[1720879805600,1.61459955,3153.9,3153.8,2.98393314]
[1720879805917,2.45474575,3154.5,3154.0,2.21937]
[1720879806487,1.61460414,3154.4,3153.8,2.21954]
[1720879806911,1.61460663,3154.3,3153.8,2.21954]
[1720879807109,1.61460663,3154.2,3153.8,2.21954]
[1720879807305,1.61460663,3154.1,3153.8,2.21954]
[1720879807504,1.61460663,3154.0,3153.9,2.21947]
[1720879807917,1.61460663,3154.0,3153.7,9.62961]
[1720879807918,1.61460663,3154.0,3153.8,2.21951]
[1720879808120,1.61460663,3153.9,3153.8,2.21951]
[1720879808418,1.61460663,3154.2,3153.8,2.21951]
[1720879808605,1.61460663,3154.1,3153.8,2.21951]
[1720879808804,1.61460663,3154.0,3153.7,9.62961]
[1720879809005,1.61460663,3153.9,3153.7,9.62961]
[1720879809197,1.61460663,3153.8,3153.7,9.62961]
[1720879809394,1.61460663,3154.2,3153.7,9.62961]
[1720879809598,1.61460663,3154.1,3153.7,9.62961]
[1720879809783,1.61460663,3154.0,3153.7,9.62961]
[1720879809987,1.61460663,3153.9,3153.7,7.41]
[1720879810321,4.93258284,3153.8,3153.7,7.41]
[1720879810618,3.83414663,3153.8,3153.7,7.41]
[1720879810801,4.93273367,3153.8,3153.1,2.22003]
[1720879810983,2.71319367,3153.7,3153.1,2.22003]
[1720879811191,2.71319367,3153.6,3153.1,2.22003]
[1720879811537,2.71319367,3153.5,3153.1,2.22003]
[1720879811690,1.61460663,3153.4,3153.1,2.22003]
[1720879811886,1.09858704,3153.3,3153.1,2.22003]
[1720879812244,1.61460663,3153.2,3153.1,2.22003]
[1720879812516,2.71319367,3153.2,3153.1,2.22003]
[1720879812717,2.78332965,3153.2,3153.1,2.22003]
[1720879813291,2.78332965,3153.2,3153.1,3.405049]
[1720879813488,2.71319367,3153.2,3153.1,3.405049]
[1720879813921,1.61460663,3153.2,3153.1,3.405049]
[1720879814135,1.65088527,3153.8,3153.3,2.21988]
[1720879814423,2.71348064,3153.7,3153.3,2.21988]
[1720879814724,4.09763738,3153.6,3153.3,2.21988]
[1720879815018,4.09763738,3153.5,3153.3,2.21988]
[1720879815323,4.09763738,3153.4,3153.3,2.21988]
[1720879815625,4.09763738,3153.4,3153.1,2.22003]
[1720879815921,4.09763738,3153.3,3153.1,2.22003]
[1720879816132,1.65109632,3153.8,3153.2,2.21996]
[1720879816287,5.74888805,3153.7,3153.2,2.21996]
[1720879816489,4.09779173,3153.6,3153.2,2.21996]
[1720879816794,4.097806,3153.5,3153.2,2.21996]
[1720879817102,1.6149414,3153.4,3153.2,2.21996]
[1720879817308,4.0978431,3153.3,3153.2,2.21996]
[1720879817507,4.16789654,3153.3,3153.2,2.21996]
[1720879820596,4.16785357,3153.3,3153.2,2.21996]
[1720879821595,4.16785357,3153.3,3153.2,4.43992]
[1720879821799,2.71355146,3153.3,3153.2,4.43992]
[1720879822106,1.65154331,3154.2,3153.6,2.21968]
[1720879822305,1.65154331,3154.0,3153.5,2.21971]
[1720879822516,6.23563554,3153.9,3153.5,2.21971]
[1720879822733,4.09703861,3153.8,3153.5,2.21971]
[1720879822893,2.99864327,3153.7,3153.5,2.21971]
[1720879823093,4.16732564,3153.6,3153.2,4.56664]
[1720879823328,4.09703861,3153.5,3153.2,2.676604]
[1720879823558,4.16738665,3153.4,3153.2,2.676604]
[1720879823700,2.7130576,3153.3,3153.2,2.676604]
[1720879823899,1.61466226,3153.3,3153.2,2.676604]
[1720879824136,2.71325644,3153.3,3153.2,2.676604]
[1720879824333,1.61466226,3153.3,3153.2,4.896564]
[1720879824500,1.09851659,3153.3,3153.2,4.896564]
[1720879827014,1.65139289,3154.0,3153.4,2.21975]
[1720879827207,4.55100381,3153.9,3153.4,2.21975]
[1720879827443,4.55101444,3153.8,3153.4,2.21975]
[1720879827611,2.48261833,3153.7,3153.4,4.43952]
[1720879827803,2.48261833,3153.6,3153.4,4.43952]
[1720879828124,1.09849898,3153.5,3153.4,2.21975]
[1720879828355,1.09849898,3153.5,3153.4,2.7093804]
[1720879830514,1.6511204,3154.1,3153.5,2.21971]
[1720879830727,4.53722812,3154.0,3153.6,2.21967]
[1720879830930,4.53722812,3153.9,3153.6,2.21967]
[1720879831136,2.48253311,3153.8,3153.6,2.21967]
[1720879831467,2.48253311,3153.7,3153.6,2.21967]
[1720879832635,2.552855,3153.7,3153.6,2.21967]
[1720879833917,1.16882205,3153.7,3153.6,2.21967]
[1720879834248,2.55293225,3153.7,3153.6,2.21967]
[1720879834441,2.55288369,3153.7,3153.6,2.21967]
[1720879836234,2.55288369,3153.7,3153.6,4.883299]
[1720879836424,1.09847867,3153.7,3153.6,4.883299]
[1720879837224,1.65149483,3154.5,3154.1,2.2193]
[1720879837428,3.15361154,3154.4,3154.2,2.21926]
[1720879837636,3.15361319,3154.3,3154.2,2.21926]
[1720879838527,1.09826537,3154.3,3154.2,7.16503966]
[1720879838745,1.09826537,3154.8,3154.7,4.43782]
[1720879839032,1.65149483,3155.2,3155.0,2.21863]
[1720879839235,1.09802937,3155.1,3155.0,2.21863]
[1720879839459,1.09802937,3155.1,3155.0,4.43733]
[1720879840457,1.65275166,3155.7,3155.2,2.21854]
[1720879840662,2.75064728,3155.6,3155.2,2.21854]
[1720879840822,1.09789562,3155.5,3154.5,9.62901]
[1720879841026,2.75064728,3155.5,3154.6,2.21895]
[1720879841240,1.65275166,3155.2,3154.5,9.62905]
[1720879841532,1.09789562,3155.1,3154.5,9.62905]
[1720879841754,1.09789562,3155.2,3154.5,9.62905]
[1720879841963,2.75064728,3155.2,3154.7,2.2189]
[1720879842131,1.09789562,3155.1,3154.7,2.2189]
[1720879842640,1.09789562,3155.0,3154.7,2.2189]
[1720879842835,1.09789562,3155.2,3154.7,2.2189]
[1720879843453,1.09789562,3155.3,3154.9,2.21875]
[1720879843626,1.65152275,3155.5,3154.9,2.21875]
[1720879843827,1.09799465,3155.4,3154.9,2.21875]
[1720879844067,1.09799465,3155.3,3154.9,2.21875]
[1720879844264,3.86986275,3155.6,3154.7,4.5527]
[1720879844265,1.09799465,3155.2,3154.8,2.21877]
[1720879844566,1.09799465,3155.3,3154.9,2.21874]
[1720879844742,1.09799465,3155.3,3154.5,7.41]
[1720879844743,1.09799465,3155.2,3154.5,7.41]
[1720879845143,2.74948842,3155.2,3154.5,7.41]
[1720879845465,1.09799465,3155.1,3154.5,7.41]
[1720879845666,2.74948842,3155.1,3154.5,7.41]
[1720879845866,1.09799465,3155.0,3154.6,2.21897]
[1720879846744,1.09799465,3155.1,3154.6,2.21897]
[1720879846956,1.09813743,3155.0,3154.6,2.21897]
[1720879847163,1.09813743,3154.9,3154.6,2.21897]
[1720879847378,0.0684338,3154.9,3154.6,2.21897]
[1720879847679,1.09813743,3154.8,3154.6,2.21897]
[1720879848005,1.09813743,3154.7,3154.6,2.21897]
[1720879848499,1.6514081,3155.1,3154.8,2.21883]
[1720879848655,1.09813184,3155.0,3154.8,2.21883]
[1720879849015,1.09813184,3154.9,3154.8,2.21883]
[1720879849296,1.16656501,3154.9,3154.8,2.21883]
[1720879850095,1.16656501,3154.9,3154.6,2.21893]
[1720879850408,1.09815752,3154.8,3154.6,2.21893]
[1720879850703,0.06843284,3154.8,3154.7,2.21891]
[1720879850996,1.09815001,3154.9,3154.7,2.21891]
[1720879851192,1.16658276,3154.8,3154.7,2.21891]
[1720879853691,1.16659139,3154.8,3154.7,2.21891]
[1720879856994,0.06843275,3154.8,3154.7,2.21891]
[1720879857200,1.65254414,3155.0,3154.7,2.21891]
[1720879857360,0.06845066,3154.9,3154.7,2.21891]
[1720879857560,1.09814239,3154.8,3154.7,2.21891]
[1720879857775,1.16659272,3154.8,3154.7,2.21891]
[1720879860163,0.06845033,3154.8,3154.7,2.21891]
[1720879860365,1.09815026,3154.8,3154.7,2.21891]
[1720879860564,1.16660059,3154.8,3154.7,2.21891]
[1720879862901,1.166594,3154.8,3154.7,2.21891]
[1720879865683,1.166594,3154.8,3154.6,4.43786]
[1720879865879,1.09814367,3154.7,3154.6,4.43786]
[1720879866215,0.0684442,3154.7,3154.6,4.881646]
[1720879866509,1.0981369,3154.7,3154.6,4.881646]
[1720879866823,1.16657617,3154.7,3154.6,4.881646]
[1720879869271,1.16658719,3154.7,3154.6,4.881646]
[1720879869869,1.09814299,3154.7,3154.6,4.881646]
[1720879870088,1.16663166,3154.7,3154.6,4.881646]
[1720879870400,1.16663166,3154.7,3154.5,2.21905]
[1720879870616,1.09814299,3154.6,3154.5,2.21905]
[1720879870769,1.16662782,3154.6,3154.5,2.21905]
[1720879872887,1.16665578,3154.6,3154.5,2.21905]
[1720879873504,1.09817095,3154.6,3154.5,2.21905]
[1720879875315,2.75466012,3154.6,3154.5,2.21905]
[1720879875811,2.82313492,3154.6,3154.4,2.21911]
[1720879876000,1.09817095,3154.5,3154.4,2.21911]
[1720879876203,1.16663118,3154.5,3154.4,2.21911]
[1720879876725,1.1666448,3154.5,3154.0,2.4857]
[1720879876919,1.65772371,3154.3,3153.9,9.62945]
[1720879877076,2.75591918,3154.2,3153.9,7.41]
[1720879877276,2.75591918,3154.1,3153.9,7.41]
[1720879877485,1.09819547,3154.0,3153.9,7.41]
[1720879877710,2.82435142,3154.0,3153.9,7.41]
[1720879879289,1.16662771,3154.0,3153.9,7.41]
[1720879879491,1.16679827,3154.0,3153.9,4.865954]
[1720879879835,1.16671126,3154.0,3153.9,7.72864]
[1720879880032,1.16671126,3154.0,3153.9,8.27864]
[1720879880332,1.16671126,3154.0,3153.9,10.49811]
[1720879880642,1.09836603,3154.0,3153.9,9.69411]
[1720879880798,1.09836603,3154.0,3153.9,12.69411]
[1720879881006,1.09836603,3154.0,3153.9,14.185479]
[1720879882728,1.65976996,3154.4,3154.0,2.21936]
[1720879882892,1.65976996,3154.4,3154.3,4.43838]
[1720879883093,1.65976996,3154.4,3154.3,6.92408]
[1720879883094,2.65545533,3154.4,3154.3,6.92408]
[1720879883312,2.65545533,3154.4,3154.3,7.47408]
[1720879883595,4.31522529,3154.4,3154.3,8.170339]
[1720879884194,1.09813082,3154.4,3154.3,8.170339]
[1720879884528,1.9921751,3154.7,3154.6,2.21893]
[1720879885530,4.64749702,3154.7,3154.6,2.21893]
[1720879885846,3.09025224,3154.7,3154.6,2.21893]
[1720879886847,1.55728842,3154.7,3154.6,2.21893]
[1720879887047,2.65544051,3154.7,3154.6,2.21893]
[1720879887547,2.65540866,3154.7,3154.6,2.21893]
[1720879888551,2.65540871,3154.7,3154.6,2.21893]
[1720879889559,4.64825647,3154.7,3154.6,2.21893]
[1720879889726,4.64825647,3154.7,3154.6,2.662731]
[1720879891852,2.32404754,3155.0,3154.7,2.2189]
[1720879892042,2.6546797,3154.9,3154.7,2.2189]
[1720879892348,2.65467907,3154.8,3154.7,2.2189]
[1720879892523,2.7230547,3154.8,3154.7,2.2189]
[1720879893331,2.7230547,3154.8,3154.7,2.7070651]
[1720879895151,1.62494388,3154.8,3154.7,2.7070651]
[1720879895337,2.72305724,3154.8,3154.7,2.7070651]
[1720879896241,2.72305724,3154.8,3154.7,4.9259751]
[1720879898462,0.06837563,3154.8,3154.7,4.9259751]
[1720879898664,2.65467492,3154.8,3154.7,4.9259751]
[1720879898961,2.72306584,3154.8,3154.7,4.43781]
[1720879899131,4.75231498,3154.8,3154.7,2.2189]
[1720879901835,2.09764006,3154.8,3154.7,2.2189]
[1720879902135,4.75244267,3154.8,3154.7,2.2189]
[1720879902341,2.09764006,3154.8,3154.7,2.2189]
[1720879902542,4.75247372,3154.8,3154.7,2.2189]
[1720879905035,2.09764006,3154.8,3154.7,2.2189]
[1720879905241,4.75245269,3154.8,3154.7,2.2189]
[1720879906950,4.75245269,3154.8,3154.7,4.881602]
[1720879907282,4.75245269,3154.8,3154.7,7.777902]
[1720879908576,3.65433842,3154.8,3154.7,7.777902]
[1720879908781,4.75237166,3154.8,3154.7,7.777902]
[1720879911876,2.09764006,3154.8,3154.7,7.777902]
[1720879912178,4.68398242,3154.8,3154.7,7.777902]
[1720879912349,2.02924914,3154.8,3154.7,7.777902]
[1720879912549,4.75252675,3154.8,3154.7,7.777902]
[1720879915080,4.75213263,3154.8,3154.7,7.777902]
[1720879915241,4.75209335,3154.8,3154.7,7.777902]
[1720879916974,4.7520932,3154.8,3154.7,7.777902]
[1720879917776,4.7520932,3154.8,3154.7,5.431602]
[1720879918548,4.7516682,3154.8,3154.7,5.431602]
[1720879919682,4.7516682,3154.8,3154.7,2.7689]
[1720879920182,4.7516682,3154.8,3154.7,4.98781]
[1720879921076,2.09779135,3154.8,3154.7,4.98781]
[1720879921281,4.75225164,3154.8,3154.7,4.98781]
[1720879921655,4.75237142,3154.8,3154.7,4.98781]
[1720879921852,4.75237142,3154.8,3154.7,2.2189]
[1720879922071,6.74349686,3154.8,3154.7,2.2189]
[1720879922874,6.74349686,3154.8,3154.1,7.41]
[1720879923094,1.65912445,3154.2,3154.1,7.41]
[1720879923402,4.75006543,3154.2,3154.1,9.62933]
[1720879923604,6.4093887,3154.2,3154.1,9.62933]
[1720879924103,6.40940923,3154.2,3154.1,9.62933]
[1720879924322,2.09548536,3154.2,3154.1,9.62933]
[1720879924474,4.74996289,3154.2,3154.1,10.814207]
[1720879925475,4.74996289,3154.2,3154.1,9.62933]
[1720879925909,4.74996289,3154.2,3154.1,7.41]